bitfinex-derivatives/quotes_BNBF0:USTF0_20250406
["timestamp","ask_amount","ask_price","bid_price","bid_amount"]
[1743970080029,3.06524104,558.65,557.83,1.31159584]
[1743970080228,0.68396286,558.64,557.83,1.31159584]
[1743970080429,2.33791261,558.64,557.83,1.31159584]
[1743970080656,1.41129129,558.63,557.83,1.31159584]
[1743970080930,4.06087546,558.63,557.83,1.31159584]
[1743970081130,2.33791261,558.62,557.83,1.31159584]
[1743970081434,2.33791261,558.62,557.72,1.31159584]
[1743970081435,1.41129129,558.61,557.72,1.31159584]
[1743970081730,1.65394975,558.6,557.72,1.31159584]
[1743970081929,1.65394975,558.59,557.72,1.31159584]
[1743970082130,1.65394975,558.58,557.72,1.31159584]
[1743970082326,3.06524104,558.57,557.72,1.31159584]
[1743970082529,2.33791261,558.56,557.72,1.31159584]
[1743970082726,1.65394975,558.55,557.72,1.31159584]
[1743970082926,3.06524104,558.54,557.72,1.31159584]
[1743970083231,2.33791261,558.53,557.72,1.31159584]
[1743970083431,1.65394975,558.52,557.72,1.31159584]
[1743970083730,1.65394975,558.51,557.72,1.31159584]
[1743970083930,1.65394975,558.5,557.72,1.31159584]
[1743970084130,1.65394975,558.49,557.72,1.31159584]
[1743970084331,3.06524104,558.48,557.72,1.31159584]
[1743970084530,2.33705535,558.47,557.72,1.31159584]
[1743970084728,2.33705535,558.47,557.38,2.73322131]
[1743970084729,1.65394975,558.46,557.43,1.31159584]
[1743970084931,1.65394975,558.45,557.43,1.31159584]
[1743970085230,1.65394975,558.44,557.43,1.31159584]
[1743970085431,3.06524104,558.43,557.43,1.31159584]
[1743970085627,2.33705535,558.42,557.43,1.31159584]
[1743970085831,1.65394975,558.41,557.43,1.31159584]
[1743970086031,1.65394975,558.4,557.43,1.31159584]
[1743970086226,1.65394975,558.39,557.43,1.31159584]
[1743970086424,2.33705535,558.38,557.43,1.31159584]
[1743970086626,1.65394975,558.37,557.43,1.31159584]
[1743970086827,3.06524104,558.36,557.43,1.31159584]
[1743970087031,2.33705535,558.35,557.43,1.31159584]
[1743970087229,1.65394975,558.34,557.43,1.31159584]
[1743970087536,1.41129129,558.33,556.84,1.31159584]
[1743970087932,3.74834664,558.33,556.86,0.3591567]
[1743970088129,2.33705535,558.32,556.86,0.3591567]
[1743970088632,1.41129129,558.31,556.86,0.3591567]
[1743970091140,1.41129129,558.3,556.86,0.3591567]
[1743970091439,1.72323245,558.3,556.86,0.3591567]
[1743970091939,1.41129129,558.29,556.86,0.3591567]
[1743970092438,0.31194116,558.3,556.86,0.3591567]
[1743970094140,1.41129129,558.31,556.86,0.3591567]
[1743970094439,0.31196633,558.29,556.86,0.3591567]
[1743970096242,0.31196633,558.29,556.92,1.31159584]
[1743970096540,0.31196633,558.29,556.94,0.35910511]
[1743970097242,1.64446885,558.3,556.94,0.35910511]
[1743970097540,0.31197612,558.28,556.94,0.35910511]
[1743970098135,1.72326741,558.28,556.94,0.35910511]
[1743970098341,1.135,558.27,556.94,0.35910511]
[1743970098537,3.45815868,558.27,556.94,0.35910511]
[1743970098743,3.77015868,558.26,556.94,0.35910511]
[1743970098944,2.32315868,558.25,556.94,0.35910511]
[1743970099744,3.05576014,558.24,556.94,0.35910511]
[1743970100039,3.73444997,558.23,556.94,0.35910511]
[1743970100244,3.73444997,558.22,556.94,0.35910511]
[1743970100444,2.68144677,558.21,556.94,0.35910511]
[1743970100645,4.09274448,558.2,556.94,0.35910511]
[1743970100837,2.68145961,558.19,556.94,0.35910511]
[1743970101144,4.09275732,558.18,556.94,0.35910511]
[1743970101343,4.09276374,558.17,556.94,0.35910511]
[1743970101545,2.32315868,558.16,556.94,0.35910511]
[1743970101740,1.64446885,558.15,556.94,0.35910511]
[1743970101945,3.05576014,558.14,556.94,0.35910511]
[1743970102146,2.32315868,558.13,556.94,0.35910511]
[1743970102346,2.65292874,558.12,556.94,0.35910511]
[1743970102646,2.64583151,558.11,556.94,0.35910511]
[1743970102845,4.0571228,558.1,556.94,0.35910511]
[1743970103046,2.64583151,558.09,556.94,0.35910511]
[1743970103249,2.64583151,558.08,556.94,0.35910511]
[1743970103446,2.31606145,558.07,556.94,0.35910511]
[1743970103645,4.0571228,558.06,556.94,0.35910511]
[1743970103846,2.64583151,558.05,556.94,0.35910511]
[1743970104044,2.64376858,558.04,556.94,0.35910511]
[1743970104348,4.05505987,558.03,556.94,0.35910511]
[1743970104545,2.64376858,558.02,556.94,0.35910511]
[1743970104749,2.64376858,558.01,556.94,0.35910511]
[1743970104948,4.05505987,558.0,556.94,0.35910511]
[1743970105148,2.64376858,557.99,556.94,0.35910511]
[1743970105347,2.64376858,557.98,556.94,0.35910511]
[1743970105553,2.31399852,557.97,556.94,0.35910511]
[1743970105855,3.72528981,557.96,556.94,0.35910511]
[1743970106049,3.72528981,557.95,556.94,0.35910511]
[1743970106248,2.31399852,557.94,556.94,0.35910511]
[1743970106449,1.63737162,557.93,556.94,0.35910511]
[1743970106852,1.63737162,557.92,556.94,0.35910511]
[1743970107053,3.04866291,557.91,556.94,0.35910511]
[1743970107255,1.63737162,557.9,556.94,0.35910511]
[1743970107753,1.41129129,557.89,556.94,0.35910511]
[1743970108055,3.04866291,557.89,556.94,0.35910511]
[1743970108253,1.63737162,557.88,556.94,0.35910511]
[1743970108454,3.04866291,557.93,556.94,0.35910511]
[1743970108655,1.63737162,557.92,556.94,0.35910511]
[1743970109152,1.63737162,557.93,556.94,0.35910511]
[1743970109652,0.31211882,557.91,556.94,0.35910511]
[1743970110349,1.41129129,557.9,556.94,0.35910511]
[1743970110755,0.31211882,557.91,556.94,0.35910511]
[1743970111955,1.41129129,557.9,556.94,0.35910511]
[1743970112450,1.72341851,557.89,556.94,0.35910511]
[1743970112651,3.36079013,557.89,556.94,0.35910511]
[1743970112851,1.63737162,557.88,556.94,0.35910511]
[1743970113053,1.72341851,557.89,556.94,0.35910511]
[1743970113257,1.41129129,557.88,556.94,0.35910511]
[1743970113857,3.04171765,557.87,556.94,0.35910511]
[1743970114057,1.63042636,557.86,556.94,0.35910511]
[1743970114259,1.41129129,557.87,556.94,0.35910511]
[1743970114457,3.04171765,557.87,556.94,0.35910511]
[1743970114758,0.31212722,557.89,556.94,0.35910511]
[1743970114759,3.04171765,557.86,556.94,0.35910511]
[1743970114958,1.63042636,557.85,556.94,0.35910511]
[1743970115160,1.41129129,557.84,556.94,0.35910511]
[1743970115359,3.04171765,557.84,556.94,0.35910511]
[1743970115561,3.3539807,557.83,556.94,0.35910511]
[1743970115757,1.63042636,557.82,556.94,0.35910511]
[1743970115955,1.41129129,557.82,556.94,0.35910511]
[1743970119056,1.41129129,557.81,556.94,0.35910511]
[1743970119357,1.41129129,557.82,556.94,0.35910511]
[1743970120662,1.41129129,557.81,556.94,0.35910511]
[1743970121057,1.41129129,557.82,556.94,0.35910511]
[1743970121259,1.191,557.8,556.94,0.35910511]
[1743970121461,1.63110366,557.79,556.94,0.35910511]
[1743970121658,1.63110366,557.78,556.94,0.35910511]
[1743970121863,1.41129129,557.78,556.94,0.35910511]
[1743970122263,1.41129129,557.77,556.94,0.35910511]
[1743970122464,2.39029129,557.77,556.94,0.35910511]
[1743970122663,3.04239495,557.76,556.94,0.35910511]
[1743970122864,1.41129129,557.76,556.94,0.35910511]
[1743970123160,1.63142833,557.76,556.94,0.35910511]
[1743970123365,0.979,557.77,556.94,0.35910511]
[1743970123959,2.39029129,557.77,556.94,0.35910511]
[1743970124159,1.63142833,557.76,556.94,0.35910511]
[1743970124462,1.41129129,557.75,556.94,0.35910511]
[1743970126067,1.087,557.74,556.94,0.35910511]
[1743970127864,0.906,557.73,556.94,0.35910511]
[1743970131866,1.711,557.72,556.94,0.35910511]
[1743970133473,0.31220002,557.71,556.94,0.35910511]
[1743970136072,1.711,557.72,556.94,0.35910511]
[1743970136478,0.31216502,557.7,556.94,0.35910511]
[1743970138981,1.71325379,557.7,556.94,0.35910511]
[1743970140183,3.73941171,557.7,556.94,0.35910511]
[1743970140383,3.72310553,557.69,556.94,0.35910511]
[1743970140580,3.72310553,557.68,556.94,0.35910511]
[1743970140779,2.32236046,557.67,556.94,0.35910511]
[1743970140983,1.40108877,557.66,556.94,0.35910511]
[1743970141183,1.40108877,557.65,556.94,0.35910511]
[1743970141384,3.72344923,557.65,556.94,0.35910511]
[1743970141585,2.32236046,557.64,556.69,1.31159584]
[1743970141884,3.04291461,557.63,556.69,1.31159584]
[1743970142085,0.68053462,557.62,556.69,1.31159584]
[1743970142288,2.32236046,557.62,556.69,1.31159584]
[1743970142483,2.63466835,557.62,556.67,1.31159584]
[1743970142687,2.08162339,557.61,556.67,1.31159584]
[1743970142887,1.64182584,557.6,556.67,1.31159584]
[1743970143188,1.64182584,557.59,556.67,1.31159584]
[1743970143387,1.64182584,557.58,556.67,1.31159584]
[1743970143588,0.68096045,557.59,556.67,1.31159584]
[1743970143589,3.04291461,557.57,556.67,1.31159584]
[1743970143792,2.32278629,557.56,556.67,1.31159584]
[1743970144085,1.64182584,557.55,556.67,1.31159584]
[1743970144284,1.40108877,557.55,556.67,1.31159584]
[1743970144486,3.72387506,557.55,556.67,1.31159584]
[1743970144682,2.32246627,557.54,556.67,1.31159584]
[1743970144886,3.04291461,557.54,556.67,1.31159584]
[1743970145085,1.64182584,557.53,556.67,1.31159584]
[1743970145593,0.31233452,557.53,556.38,1.31159584]
[1743970145790,0.31233452,557.53,556.39,0.35946009]
[1743970148289,1.64182584,557.58,556.39,0.35946009]
[1743970148493,0.3123948,557.52,556.39,0.35946009]
[1743970149792,1.167,557.51,556.39,0.35946009]
[1743970150399,0.938,557.5,556.39,0.35946009]
[1743970150899,1.043,557.49,556.39,0.35946009]
[1743970151100,3.87661802,557.49,556.39,0.35946009]
[1743970151296,3.04570679,557.48,556.39,0.35946009]
[1743970151808,1.40108877,557.48,556.39,0.35946009]
[1743970152102,3.04580147,557.48,556.39,0.35946009]
[1743970153503,1.40108877,557.48,556.39,0.35946009]
[1743970153805,3.04630185,557.48,556.39,0.35946009]
[1743970154403,0.31241303,557.47,556.39,0.35946009]
[1743970159103,2.232,557.49,556.39,0.35946009]
[1743970159301,1.024,557.46,556.39,0.35946009]
[1743970160405,1.024,557.46,556.49,1.31159584]
[1743970160603,1.024,557.46,556.51,0.35938258]
[1743970162102,1.024,557.46,556.63,1.31159584]
[1743970162509,1.024,557.46,556.65,0.35929219]
[1743970166609,0.3123135,557.45,556.65,0.35929219]
[1743970168712,1.5503135,557.45,556.65,0.35929219]
[1743970169212,1.238,557.45,556.65,0.35929219]
[1743970169407,0.31237097,557.44,556.65,0.35929219]
[1743970172116,2.64544443,557.45,556.65,0.35929219]
[1743970172314,1.258,557.44,556.65,0.35929219]
[1743970172511,0.31240041,557.43,556.65,0.35929219]
[1743970174517,1.96101932,557.43,556.65,0.35929219]
[1743970174916,0.31240041,557.43,556.65,0.35929219]
[1743970175117,1.258,557.44,556.65,0.35929219]
[1743970175312,2.90642979,557.44,556.65,0.35929219]
[1743970175517,0.31243267,557.42,556.65,0.35929219]
[1743970176118,1.402,557.41,556.65,0.35929219]
[1743970178320,1.212,557.4,556.65,0.35929219]
[1743970178515,1.52443267,557.4,556.65,0.35929219]
[1743970178821,2.93126562,557.4,556.65,0.35929219]
[1743970180624,0.869,557.39,556.65,0.35929219]
[1743970181423,0.31246773,557.38,556.65,0.35929219]
[1743970182324,1.71930068,557.38,556.65,0.35929219]
[1743970182520,3.36796416,557.38,556.65,0.35929219]
[1743970182923,1.64859479,557.37,556.65,0.35929219]
[1743970183219,1.71930068,557.38,556.65,0.35929219]
[1743970183220,3.36789547,557.38,556.65,0.35929219]
[1743970183423,1.40683295,557.37,556.65,0.35929219]
[1743970184319,1.40683295,557.38,556.65,0.35929219]
[1743970184525,0.3124537,557.36,556.65,0.35929219]
[1743970187127,1.40683295,557.37,556.65,0.35929219]
[1743970187527,0.31247054,557.35,556.65,0.35929219]
[1743970193234,0.943,557.34,556.65,0.35929219]
[1743970193630,1.25549018,557.34,556.65,0.35929219]
[1743970195031,1.639,557.33,556.65,0.35929219]
[1743970195538,3.04583295,557.33,556.65,0.35929219]
[1743970196340,1.65337991,557.32,556.65,0.35929219]
[1743970196645,3.37271988,557.32,556.0,1.31159584]
[1743970196833,3.37271988,557.32,556.02,0.35969929]
[1743970197143,1.40683295,557.31,556.02,0.35969929]
[1743970198043,1.40683295,557.31,556.23,1.31159584]
[1743970198339,1.40683295,557.31,556.24,0.35955702]
[1743970199146,2.09093338,557.31,556.24,0.35955702]
[1743970199344,2.33818953,557.3,556.24,0.35955702]
[1743970199544,1.65394623,557.29,556.24,0.35955702]
[1743970199744,1.65394623,557.28,556.24,0.35955702]
[1743970200042,3.06077918,557.27,556.24,0.35955702]
[1743970200236,2.33818953,557.26,556.24,0.35955702]
[1743970200447,4.07514033,557.25,556.24,0.35955702]
[1743970200643,2.66830738,557.24,556.24,0.35955702]
[1743970200945,3.74730738,557.23,556.3,1.31159584]
[1743970201144,4.07514033,557.22,556.3,1.31159584]
[1743970201344,2.66830738,557.21,556.3,1.31159584]
[1743970201644,2.66830738,557.2,556.3,1.31159584]
[1743970201842,2.66830738,557.19,556.3,1.31159584]
[1743970202042,2.66838769,557.18,556.3,1.31159584]
[1743970202242,2.33818953,557.17,556.3,1.31159584]
[1743970202437,2.66839589,557.16,556.3,1.31159584]
[1743970202645,4.07522884,557.15,556.3,1.31159584]
[1743970202844,2.66839589,557.14,556.3,1.31159584]
[1743970203039,3.02737853,557.13,556.3,1.31159584]
[1743970203241,3.02738497,557.12,556.3,1.31159584]
[1743970203437,2.66691841,557.11,556.3,1.31159584]
[1743970203648,2.66691841,557.11,549.25,0.66146509]
[1743970203649,4.07382132,557.1,555.91,1.31159584]
[1743970203845,2.66698837,557.09,555.91,1.31159584]
[1743970204149,2.66698837,557.08,555.91,1.31159584]
[1743970204349,4.07382132,557.07,555.91,1.31159584]
[1743970204645,2.65851373,557.06,555.91,1.31159584]
[1743970204845,2.32823741,557.05,555.91,1.31159584]
[1743970205044,2.32823741,557.04,555.91,1.31159584]
[1743970205242,2.32823741,557.03,555.91,1.31159584]
[1743970205446,1.64686198,557.02,555.91,1.31159584]
[1743970205652,1.40683295,557.01,555.91,1.31159584]
[1743970205841,3.27920838,557.01,555.91,1.31159584]
[1743970206044,2.32823741,557.0,555.61,1.31159584]
[1743970206243,3.05369493,557.0,555.61,1.31159584]
[1743970206542,1.40683295,556.99,555.61,1.31159584]
[1743970206748,1.40683295,556.99,555.62,0.31268813]
[1743970207848,1.40683295,556.98,555.62,0.31268813]
[1743970208053,1.40683295,556.98,555.64,1.31159584]
[1743970208243,1.64686198,556.97,555.64,1.31159584]
[1743970208441,1.64686198,556.96,555.64,1.31159584]
[1743970208746,1.97710352,556.95,555.64,1.31159584]
[1743970208941,2.65741037,556.94,555.66,0.35993233]
[1743970209142,3.73081803,556.93,555.66,0.35993233]
[1743970209345,2.32398508,556.92,555.66,0.35993233]
[1743970209542,1.64367823,556.91,555.66,0.35993233]
[1743970209745,2.32398508,556.92,555.66,0.35993233]
[1743970209945,1.40683295,556.91,555.66,0.35993233]
[1743970210144,3.73081803,556.91,555.66,0.35993233]
[1743970210352,1.64367823,556.9,555.66,0.35993233]
[1743970210742,1.40683295,556.89,555.66,0.35993233]
[1743970210951,1.40683295,556.88,555.66,0.35993233]
[1743970211148,3.05051118,556.88,555.66,0.35993233]
[1743970211347,1.64367823,556.87,555.66,0.35993233]
[1743970211548,1.40683295,556.86,555.66,0.35993233]
[1743970211748,3.05051118,556.86,555.66,0.35993233]
[1743970211945,3.05051118,556.85,555.66,0.35993233]
[1743970212149,1.64367823,556.84,555.66,0.35993233]
[1743970212546,1.40683295,556.86,555.66,0.35993233]
[1743970213153,3.05051118,556.86,555.66,0.35993233]
[1743970213345,1.75486543,556.85,555.66,0.35993233]
[1743970213545,4.80537661,556.85,555.66,0.35993233]
[1743970213846,2.32229647,556.84,555.66,0.35993233]
[1743970214051,1.40683295,556.83,555.66,0.35993233]
[1743970214357,1.40683295,556.82,555.66,0.35993233]
[1743970214557,3.05051118,556.82,555.66,0.35993233]
[1743970214757,1.64367823,556.81,555.66,0.35993233]
[1743970214949,1.40683295,556.81,555.66,0.35993233]
[1743970215550,1.40683295,556.8,555.66,0.35993233]
[1743970216054,1.40683295,556.79,555.66,0.35993233]
[1743970216550,1.345,556.78,555.66,0.35993233]
[1743970216755,4.39551118,556.78,555.66,0.35993233]
[1743970216959,2.68167823,556.77,555.66,0.35993233]
[1743970217156,1.40683295,556.76,555.66,0.35993233]
[1743970217350,3.05051118,556.76,555.66,0.35993233]
[1743970217560,1.40683295,556.75,555.66,0.35993233]
[1743970218057,1.64367823,556.74,555.66,0.35993233]
[1743970218259,1.64367823,556.73,555.66,0.35993233]
[1743970218453,3.05051118,556.72,555.66,0.35993233]
[1743970218653,2.32154982,556.71,555.66,0.35993233]
[1743970218850,3.05051118,556.7,555.66,0.35993233]
[1743970219052,2.32154982,556.69,555.66,0.35993233]
[1743970219354,1.64367823,556.68,555.66,0.35993233]
[1743970219552,1.64367823,556.67,555.66,0.35993233]
[1743970219958,1.40683295,556.68,555.66,0.35993233]
[1743970220150,3.05051118,556.69,555.66,0.35993233]
[1743970220558,0.31291306,556.67,555.66,0.35993233]
[1743970223363,0.96,556.7,555.66,0.35993233]
[1743970223663,0.31288774,556.66,555.66,0.35993233]
[1743970226162,0.96,556.7,555.66,0.35993233]
[1743970226463,0.31280477,556.65,555.66,0.35993233]
[1743970229170,0.96,556.7,555.66,0.35993233]
[1743970229572,0.31279071,556.67,555.66,0.35993233]
[1743970231371,0.96,556.7,555.66,0.35993233]
[1743970232469,2.607,556.7,555.66,0.35993233]
[1743970233773,2.607,556.7,555.75,1.31159584]
[1743970233969,2.607,556.7,555.77,0.35986109]
[1743970235774,2.607,556.7,555.83,1.31159584]
[1743970235972,2.607,556.7,555.85,0.3598093]
[1743970236980,3.867,556.7,555.85,0.3598093]
[1743970238877,4.839,556.7,555.85,0.3598093]
[1743970239077,4.839,556.7,555.84,1.31159584]
[1743970239674,4.839,556.7,556.1,1.31159584]
[1743970241175,3.879,556.7,556.1,1.31159584]
[1743970243576,1.647,556.7,556.1,1.31159584]
[1743970243782,0.31236957,557.84,556.1,1.31159584]
[1743970243983,1.409,557.03,556.1,1.31159584]
[1743970244885,1.409,557.03,556.26,1.31159584]
[1743970245285,2.485,557.03,556.26,1.31159584]
[1743970247987,2.485,557.03,556.13,1.31159584]
[1743970250392,2.485,557.03,556.09,0.31232751]
[1743970253194,2.485,557.03,555.66,1.31159584]
[1743970253492,2.485,557.03,556.09,0.31245511]
[1743970253792,2.485,557.03,555.04,1.31159584]
[1743970254593,2.485,557.03,555.08,0.31256877]
[1743970255688,2.485,557.03,555.35,1.31159584]
[1743970256799,1.199,557.02,555.35,1.31159584]
[1743970258096,1.199,557.02,555.38,1.31159584]
[1743970259792,1.199,557.02,555.47,1.31159584]
[1743970262699,1.285,557.01,555.47,1.31159584]
[1743970263295,1.285,557.01,555.74,1.31159584]
[1743970265405,1.285,557.01,555.78,1.31159584]
[1743970265704,1.285,557.01,555.8,0.35984166]
[1743970266204,1.312,557.0,555.8,0.35984166]
[1743970271507,0.31266285,556.99,555.8,0.35984166]
[1743970274215,1.312,557.0,555.8,0.35984166]
[1743970276813,1.044,556.99,555.8,0.35984166]
[1743970279818,1.59,556.98,555.8,0.35984166]
[1743970285627,1.59,556.98,555.81,1.31159584]
[1743970286433,0.31261931,556.97,555.83,0.35982224]
[1743970287532,1.358,556.96,555.83,0.35982224]
[1743970288132,0.919,556.95,555.83,0.35982224]
[1743970290734,2.41963335,556.95,555.83,0.35982224]
[1743970291230,2.107,556.95,555.83,0.35982224]
[1743970294637,3.37,556.95,555.83,0.35982224]
[1743970294938,3.37,556.95,555.9,1.31159584]
[1743970295141,3.37,556.95,555.92,0.35976399]
[1743970298441,0.31262493,556.94,555.92,0.35976399]
[1743970301147,0.31262493,556.94,555.92,1.67135983]
[1743970303044,0.31262493,556.94,555.95,1.31159584]
[1743970303251,0.31262493,556.94,555.97,0.35973164]
[1743970304346,2.451,556.95,555.97,0.35973164]
[1743970304549,0.31261088,556.93,555.97,0.35973164]
[1743970305250,1.206,556.92,555.97,0.35973164]
[1743970308353,1.206,556.92,556.03,1.31159584]
[1743970309352,1.206,556.92,556.05,0.35967988]
[1743970312751,1.041,556.91,556.05,0.35967988]
[1743970314058,1.073,556.9,556.05,0.35967988]
[1743970314854,1.073,556.9,556.29,1.31159584]
[1743970316759,1.073,556.9,556.3,0.35951824]
[1743970317455,1.073,556.9,556.36,1.31159584]
[1743970317654,1.088,556.89,556.36,1.31159584]
[1743970320064,1.088,556.89,556.39,1.31159584]
[1743970323062,1.088,556.89,556.3,0.35951824]
[1743970325867,1.088,556.89,556.39,1.31159584]
[1743970328268,1.088,556.89,556.3,0.35951824]
[1743970328269,1.088,556.89,556.42,1.31159584]
[1743970330474,1.088,556.89,556.43,1.31159584]
[1743970331164,1.558,556.88,556.43,1.31159584]
[1743970332369,1.558,556.88,556.44,0.35942779]
[1743970334273,1.262,556.87,556.44,0.35942779]
[1743970334974,0.943,556.86,556.68,1.31159584]
[1743970335174,0.943,556.86,556.69,0.35926637]
[1743970346189,0.943,556.86,556.3,1.31159584]
[1743970346383,0.943,556.86,556.31,0.35951178]
[1743970349394,1.411,556.85,556.31,0.35951178]
[1743970353696,1.411,556.85,556.37,1.31159584]
[1743970355097,1.411,556.85,556.38,0.35946655]
[1743970355597,1.411,556.85,556.41,1.31159584]
[1743970355799,1.411,556.85,556.42,0.35944071]
[1743970357192,1.064,556.84,556.42,0.35944071]
[1743970357898,1.396,556.83,556.42,0.35944071]
[1743970365706,2.754,556.83,556.42,0.35944071]
[1743970367107,3.984,556.83,556.42,0.35944071]
[1743970373305,3.984,556.83,556.43,1.31159584]
[1743970375105,5.154,556.83,556.43,1.31159584]
[1743970376213,5.154,556.83,556.42,0.35944071]
[1743970377912,5.154,556.83,556.45,1.31159584]
[1743970378612,5.154,556.83,556.46,0.35941487]
[1743970380014,3.758,556.83,556.46,0.35941487]
[1743970380818,3.758,556.83,556.61,1.31159584]
[1743970383714,3.758,556.83,556.62,1.31159584]
[1743970385713,2.4,556.83,556.62,1.31159584]
[1743970386219,2.4,556.83,556.65,1.31159584]
[1743970387420,2.4,556.83,556.59,1.31159584]
[1743970389020,2.4,556.83,556.46,0.35941487]
[1743970389021,2.4,556.83,556.62,1.31159584]
[1743970391323,2.4,556.83,556.64,1.31159584]
[1743970393022,2.4,556.83,556.46,0.35941487]
[1743970393023,2.4,556.83,556.59,1.31159584]
[1743970394124,1.23,556.83,556.59,1.31159584]
[1743970395620,1.23,556.83,556.5,1.31159584]
[1743970396926,1.411,556.85,556.5,1.31159584]
[1743970397826,1.411,556.85,556.46,0.35941487]
[1743970400224,0.894,556.84,556.46,0.35941487]
[1743970405027,0.894,556.84,556.47,1.31159584]
[1743970407531,0.894,556.84,556.46,0.35941487]
[1743970407532,0.894,556.84,556.49,1.31159584]
[1743970409033,0.894,556.84,556.51,1.31159584]
[1743970410840,0.894,556.84,556.49,1.31159584]
[1743970412443,0.894,556.84,556.5,1.31159584]
[1743970414740,0.894,556.84,556.46,0.35941487]
[1743970421947,1.758,556.84,556.46,0.35941487]
[1743970426552,1.758,556.84,556.46,1.67101071]
[1743970428158,3.171,556.84,556.46,1.67101071]
[1743970428657,3.171,556.84,556.46,0.35941487]
[1743970431258,3.171,556.84,556.45,1.31159584]
[1743970431660,2.277,556.84,556.45,1.31159584]
[1743970432258,1.277,556.83,556.45,1.31159584]
[1743970433161,1.277,556.83,556.44,1.31159584]
[1743970435256,2.217,556.83,556.44,1.31159584]
[1743970436063,2.217,556.83,555.89,1.31159584]
[1743970436257,2.217,556.83,555.91,0.35977046]
[1743970438259,3.576,556.83,555.91,0.35977046]
[1743970438864,3.576,556.83,555.97,1.31159584]
[1743970439065,3.576,556.83,556.11,1.31159584]
[1743970439262,3.576,556.83,556.12,0.35963461]
[1743970441364,3.576,556.83,556.15,1.31159584]
[1743970441668,3.576,556.83,556.16,0.35960874]
[1743970443070,4.709,556.83,556.18,1.31159584]
[1743970443471,4.709,556.83,556.19,0.35958934]
[1743970445772,4.709,556.83,556.22,1.31159584]
[1743970445966,4.709,556.83,556.23,0.35956348]
[1743970449178,4.709,556.83,556.36,1.31159584]
[1743970449576,6.114,556.83,556.36,1.31159584]
[1743970450680,6.114,556.83,556.29,1.31159584]
[1743970452879,6.114,556.83,556.27,1.31159584]
[1743970453580,7.336,556.83,556.27,1.31159584]
[1743970454780,7.336,556.83,556.32,1.31159584]
[1743970457379,7.336,556.83,556.23,0.35956348]
[1743970460581,7.336,556.83,556.36,1.31159584]
[1743970461881,7.336,556.83,556.37,0.35947301]
[1743970462786,7.336,556.83,556.51,1.31159584]
[1743970463083,6.396,556.83,556.51,1.31159584]
[1743970464384,5.037,556.83,556.51,1.31159584]
[1743970465885,5.037,556.83,556.37,0.35947301]
[1743970468286,5.945,556.83,556.37,0.35947301]
[1743970491406,7.371,556.83,556.37,0.35947301]
[1743970494311,7.371,556.83,556.19,1.31159584]
[1743970496014,7.371,556.83,556.01,1.31159584]
[1743970496206,7.371,556.83,556.02,0.35969929]
[1743970496911,0.31265582,556.82,556.02,0.35969929]
[1743970499310,2.648,556.83,556.02,0.35969929]
[1743970499515,1.41396733,556.82,556.02,0.35969929]
[1743970499709,0.31269515,556.81,556.02,0.35969929]
[1743970500817,0.908,556.8,556.02,0.35969929]
[1743970502617,0.31269937,556.79,556.02,0.35969929]
[1743970505317,0.908,556.8,556.02,0.35969929]
[1743970505713,0.3127092,556.78,556.02,0.35969929]
[1743970508319,1.148,556.77,555.71,1.31159584]
[1743970508621,1.148,556.77,555.72,0.35989347]
[1743970509017,3.47636872,556.77,555.72,0.35989347]
[1743970509214,2.32836872,556.76,555.72,0.35989347]
[1743970509421,3.73942574,556.76,555.72,0.35989347]
[1743970509621,2.68759638,556.75,555.72,0.35989347]
[1743970509825,2.45401968,556.74,555.72,0.35989347]
[1743970510016,1.64464017,556.73,555.72,0.35989347]
[1743970510217,2.68760928,556.73,555.72,0.35989347]
[1743970510417,3.73942574,556.72,555.72,0.35989347]
[1743970510621,2.32836872,556.71,555.72,0.35989347]
[1743970510819,2.00390009,556.7,555.72,0.35989347]
[1743970511021,2.32836872,556.69,555.72,0.35989347]
[1743970511221,1.64464017,556.68,555.72,0.35989347]
[1743970511521,3.05569719,556.68,555.72,0.35989347]
[1743970511723,2.64121708,556.67,555.72,0.35989347]
[1743970511920,2.09478557,556.66,555.72,0.35989347]
[1743970512122,1.64464017,556.65,555.72,0.35989347]
[1743970512317,2.32836872,556.65,555.72,0.35989347]
[1743970512522,3.73942574,556.65,555.72,0.35989347]
[1743970512725,2.32836872,556.64,555.72,0.35989347]
[1743970513223,1.41105702,556.63,555.72,0.35989347]
[1743970513417,3.73942574,556.63,555.72,0.35989347]
[1743970513621,1.64464017,556.62,555.72,0.35989347]
[1743970513821,1.41105702,556.66,555.72,0.35989347]
[1743970514423,2.32604277,556.67,555.72,0.35989347]
[1743970514626,0.3129018,556.65,555.72,0.35989347]